[Event "Titled Tuesday Blitz June 20 Early 2023"]
[White "Pastar, Slaven"]
[Black "Vaglio Munoz, Jaime"]
[WhiteFideId "14402718"]
[BlackFideId "6500145"]
[WhiteElo "2219"]
[BlackElo "2199"]
[Result "0-1"]
[Round "5"]
[TimeControl "180+2"]
[Date "2023.06.20"]
[WhiteClock "0:00:00"]
[BlackClock "0:00:35"]
[Board "165"]

1. b3 {[%clk 0:03:00]}  b5 {[%clk 0:02:51]} 2. Bb2 {[%clk 0:03:01]}  Bb7 {[%clk 0:02:50]} 3. Nf3 {[%clk 0:03:01]}  Nf6 {[%clk 0:02:49]} 4. e3 {[%clk 0:03:01]}  a6 {[%clk 0:02:48]} 5. Be2 {[%clk 0:03:01]}  e6 {[%clk 0:02:48]} 6. O-O {[%clk 0:03:01]}  Be7 {[%clk 0:02:49]} 7. c4 {[%clk 0:03:02]}  b4 {[%clk 0:02:48]} 8. d4 {[%clk 0:03:01]}  a5 {[%clk 0:02:47]} 9. Nbd2 {[%clk 0:02:56]}  O-O {[%clk 0:02:46]} 10. Qc2 {[%clk 0:02:55]}  c5 {[%clk 0:02:45]} 11. Bd3 {[%clk 0:02:55]}  cxd4 {[%clk 0:02:44]} 12. Nxd4 {[%clk 0:02:52]}  d6 {[%clk 0:02:43]} 13. Rad1 {[%clk 0:02:47]}  Nbd7 {[%clk 0:02:43]} 14. Ne4 {[%clk 0:02:28]}  h6 {[%clk 0:02:41]} 15. Nb5 {[%clk 0:02:25]}  d5 {[%clk 0:02:30]} 16. Nxf6+ {[%clk 0:02:12]}  Nxf6 {[%clk 0:02:25]} 17. Be5 {[%clk 0:01:59]}  Rc8 {[%clk 0:02:20]} 18. Qb2 {[%clk 0:01:58]}  Qb6 {[%clk 0:02:14]} 19. Bd4 {[%clk 0:01:43]}  Qd8 {[%clk 0:02:07]} 20. h3 {[%clk 0:01:38]}  Ne8 {[%clk 0:01:39]} 21. e4 {[%clk 0:01:11]}  dxe4 {[%clk 0:01:21]} 22. Be2 {[%clk 0:00:11]}  Bf6 {[%clk 0:01:18]} 23. Be5 {[%clk 0:00:11]}  Bxe5 {[%clk 0:01:09]} 24. Qxe5 {[%clk 0:00:12]}  Qf6 {[%clk 0:01:09]} 25. Qg3 {[%clk 0:00:12]}  Bc6 {[%clk 0:00:55]} 26. Na7 {[%clk 0:00:10]}  Rc7 {[%clk 0:00:55]} 27. Nxc6 {[%clk 0:00:09]}  Rxc6 {[%clk 0:00:55]} 28. Rd7 {[%clk 0:00:09]}  e5 {[%clk 0:00:50]} 29. Rfd1 {[%clk 0:00:07]}  Qf5 {[%clk 0:00:48]} 30. Bg4 {[%clk 0:00:06]}  Qg5 {[%clk 0:00:45]} 31. h4 {[%clk 0:00:06]}  Qf4 {[%clk 0:00:45]} 32. Bh5 {[%clk 0:00:02]}  Qxg3 {[%clk 0:00:38]} 33. fxg3 {[%clk 0:00:03]}  Nf6 {[%clk 0:00:37]} 34. Ra7 {[%clk 0:00:02]}  Nxh5 {[%clk 0:00:37]} 35. Rxa5 {[%clk 0:00:02]}  Nxg3 {[%clk 0:00:37]} 36. Rxe5 {[%clk 0:00:02]}  f5 {[%clk 0:00:35]} 37. Rb5 {[%clk 0:00:01]}  Rc7 {[%clk 0:00:35]} 38. Rxb4 {[%clk 0:00:00]}  e3 {[%clk 0:00:35]} 0-1


[Site "https://www.chess.com"]

[Event "Titled Tuesday Blitz June 20 Early 2023"]
[White "Tokhirjonova, Gulrukhbegim"]
[Black "Vifleemskaia, Svetlana"]
[WhiteFideId "14203626"]
[BlackFideId "4129490"]
[WhiteElo "2265"]
[BlackElo "1930"]
[Result "1-0"]
[Round "5"]
[TimeControl "180+2"]
[Date "2023.06.20"]
[WhiteClock "0:01:01"]
[BlackClock "0:00:00"]
[Board "167"]

1. d4 {[%clk 0:02:50]}  Nf6 {[%clk 0:02:59]} 2. Nc3 {[%clk 0:02:50]}  d5 {[%clk 0:02:57]} 3. Bf4 {[%clk 0:02:51]}  a6 {[%clk 0:02:55]} 4. e3 {[%clk 0:02:51]}  c5 {[%clk 0:02:54]} 5. h3 {[%clk 0:02:50]}  Nc6 {[%clk 0:02:55]} 6. Nf3 {[%clk 0:02:50]}  h6 {[%clk 0:02:51]} 7. a3 {[%clk 0:02:45]}  cxd4 {[%clk 0:02:50]} 8. exd4 {[%clk 0:02:45]}  Bf5 {[%clk 0:02:50]} 9. Bd3 {[%clk 0:02:44]}  Bxd3 {[%clk 0:02:44]} 10. Qxd3 {[%clk 0:02:45]}  e6 {[%clk 0:02:44]} 11. O-O {[%clk 0:02:44]}  Bd6 {[%clk 0:02:43]} 12. Ne5 {[%clk 0:02:44]}  Bxe5 {[%clk 0:02:40]} 13. dxe5 {[%clk 0:02:45]}  Nd7 {[%clk 0:02:40]} 14. Rfe1 {[%clk 0:02:45]}  O-O {[%clk 0:02:36]} 15. Rad1 {[%clk 0:02:43]}  Qb6 {[%clk 0:02:29]} 16. b4 {[%clk 0:02:40]}  Qc7 {[%clk 0:02:22]} 17. Qg3 {[%clk 0:02:36]}  Kh7 {[%clk 0:02:19]} 18. Nxd5 {[%clk 0:02:28]}  exd5 {[%clk 0:01:47]} 19. e6 {[%clk 0:02:27]}  Nde5 {[%clk 0:01:46]} 20. Rxe5 {[%clk 0:02:22]}  Qe7 {[%clk 0:01:19]} 21. Rexd5 {[%clk 0:02:10]}  Qxe6 {[%clk 0:01:13]} 22. Rd6 {[%clk 0:02:09]}  Qf5 {[%clk 0:01:09]} 23. c4 {[%clk 0:02:06]}  Rad8 {[%clk 0:01:03]} 24. c5 {[%clk 0:02:00]}  Rxd6 {[%clk 0:00:57]} 25. cxd6 {[%clk 0:01:59]}  Rd8 {[%clk 0:00:57]} 26. Qe3 {[%clk 0:01:51]}  Rd7 {[%clk 0:00:54]} 27. Bg3 {[%clk 0:01:49]}  Qe6 {[%clk 0:00:39]} 28. Qc5 {[%clk 0:01:44]}  f6 {[%clk 0:00:24]} 29. f3 {[%clk 0:01:40]}  Ne5 {[%clk 0:00:17]} 30. Qd4 {[%clk 0:01:31]}  Nc6 {[%clk 0:00:14]} 31. Qd3+ {[%clk 0:01:29]}  f5 {[%clk 0:00:12]} 32. Re1 {[%clk 0:01:29]}  Qf6 {[%clk 0:00:09]} 33. h4 {[%clk 0:01:23]}  g5 {[%clk 0:00:09]} 34. hxg5 {[%clk 0:01:22]}  hxg5 {[%clk 0:00:10]} 35. Kf2 {[%clk 0:01:15]}  Kg6 {[%clk 0:00:07]} 36. Re8 {[%clk 0:01:08]}  Qf7 {[%clk 0:00:03]} 37. Re2 {[%clk 0:01:03]}  Kg7 {[%clk 0:00:01]} 38. f4 {[%clk 0:01:01]}  g4 {[%clk 0:00:00]} 39. Bh4 {[%clk 0:01:01]} 1-0


[Site "https://www.chess.com"]

[Event "Titled Tuesday Blitz June 20 Early 2023"]
[White "Devaev, Alexander"]
[Black "Ardila, Oscar Humberto"]
[WhiteFideId "4169395"]
[BlackFideId "4404742"]
[WhiteElo "2172"]
[BlackElo "1912"]
[Result "1-0"]
[Round "5"]
[TimeControl "180+2"]
[Date "2023.06.20"]
[WhiteClock "0:00:15"]
[BlackClock "0:00:03"]
[Board "168"]

1. d4 {[%clk 0:02:56]}  Nf6 {[%clk 0:02:59]} 2. c4 {[%clk 0:02:54]}  g6 {[%clk 0:02:59]} 3. Nc3 {[%clk 0:02:54]}  Bg7 {[%clk 0:03:00]} 4. e4 {[%clk 0:02:55]}  d6 {[%clk 0:03:00]} 5. Nf3 {[%clk 0:02:56]}  O-O {[%clk 0:03:01]} 6. h3 {[%clk 0:02:56]}  Nbd7 {[%clk 0:03:01]} 7. Bg5 {[%clk 0:02:56]}  h6 {[%clk 0:03:00]} 8. Be3 {[%clk 0:02:56]}  e5 {[%clk 0:03:00]} 9. d5 {[%clk 0:02:57]}  Nc5 {[%clk 0:03:00]} 10. Nd2 {[%clk 0:02:57]}  a5 {[%clk 0:02:59]} 11. g4 {[%clk 0:02:58]}  c6 {[%clk 0:02:56]} 12. Be2 {[%clk 0:02:57]}  cxd5 {[%clk 0:02:56]} 13. cxd5 {[%clk 0:02:58]}  Bd7 {[%clk 0:02:55]} 14. Nc4 {[%clk 0:02:58]}  Ne8 {[%clk 0:02:50]} 15. Qd2 {[%clk 0:02:54]}  Kh7 {[%clk 0:02:50]} 16. Na3 {[%clk 0:02:52]}  Rb8 {[%clk 0:02:46]} 17. Bb5 {[%clk 0:02:47]}  f5 {[%clk 0:02:41]} 18. f3 {[%clk 0:02:46]}  fxe4 {[%clk 0:02:39]} 19. fxe4 {[%clk 0:02:44]}  Qh4+ {[%clk 0:02:25]} 20. Bf2 {[%clk 0:02:36]}  Qf6 {[%clk 0:02:18]} 21. O-O {[%clk 0:02:27]}  Qe7 {[%clk 0:02:01]} 22. Bxd7 {[%clk 0:02:25]}  Qxd7 {[%clk 0:01:56]} 23. Bxc5 {[%clk 0:02:24]}  dxc5 {[%clk 0:01:55]} 24. Rxf8 {[%clk 0:02:25]}  Bxf8 {[%clk 0:01:55]} 25. Nc4 {[%clk 0:02:19]}  Bg7 {[%clk 0:01:50]} 26. a4 {[%clk 0:02:20]}  Nd6 {[%clk 0:01:49]} 27. Nxd6 {[%clk 0:02:13]}  Qxd6 {[%clk 0:01:49]} 28. Rf1 {[%clk 0:02:13]}  Rf8 {[%clk 0:01:49]} 29. Rxf8 {[%clk 0:02:12]}  Qxf8 {[%clk 0:01:50]} 30. Qf2 {[%clk 0:02:13]}  Qd6 {[%clk 0:01:46]} 31. Qf7 {[%clk 0:02:12]}  c4 {[%clk 0:01:43]} 32. Qxb7 {[%clk 0:02:05]}  Qc5+ {[%clk 0:01:43]} 33. Kg2 {[%clk 0:02:06]}  Qe3 {[%clk 0:01:43]} 34. Qf7 {[%clk 0:02:06]}  Qd2+ {[%clk 0:01:42]} 35. Qf2 {[%clk 0:02:07]}  Qd3 {[%clk 0:01:36]} 36. Qe2 {[%clk 0:02:07]}  Qd4 {[%clk 0:01:36]} 37. Kf3 {[%clk 0:02:03]}  Qb6 {[%clk 0:01:24]} 38. Qe1 {[%clk 0:02:01]}  Qxb2 {[%clk 0:01:21]} 39. d6 {[%clk 0:02:01]}  Bf6 {[%clk 0:01:16]} 40. Nd5 {[%clk 0:01:57]}  Bg5 {[%clk 0:01:13]} 41. h4 {[%clk 0:01:50]}  Qb3+ {[%clk 0:01:11]} 42. Kg2 {[%clk 0:00:55]}  Qc2+ {[%clk 0:00:57]} 43. Kh3 {[%clk 0:00:53]}  Qd3+ {[%clk 0:00:49]} 44. Kh2 {[%clk 0:00:35]}  Bf4+ {[%clk 0:00:43]} 45. Kg2 {[%clk 0:00:25]}  Qc2+ {[%clk 0:00:40]} 46. Kf3 {[%clk 0:00:20]}  Qd3+ {[%clk 0:00:39]} 47. Kg2 {[%clk 0:00:21]}  c3 {[%clk 0:00:32]} 48. d7 {[%clk 0:00:19]}  Bd2 {[%clk 0:00:20]} 49. d8=Q {[%clk 0:00:16]}  Bxe1 {[%clk 0:00:03]} 50. Nf6+ {[%clk 0:00:16]}  Kg7 {[%clk 0:00:03]} 51. Qxd3 {[%clk 0:00:13]}  Kxf6 {[%clk 0:00:04]} 52. h5 {[%clk 0:00:13]}  gxh5 {[%clk 0:00:04]} 53. gxh5 {[%clk 0:00:14]}  Kg5 {[%clk 0:00:04]} 54. Qe3+ {[%clk 0:00:13]}  Kxh5 {[%clk 0:00:03]} 55. Qxe1 {[%clk 0:00:14]}  Kg4 {[%clk 0:00:04]} 56. Qxc3 {[%clk 0:00:14]}  Kf4 {[%clk 0:00:03]} 57. Qf3+ {[%clk 0:00:15]} 1-0


[Site "https://www.chess.com"]

[Event "Titled Tuesday Blitz June 20 Early 2023"]
[White "Slovineanu, Viacheslav"]
[Black "Reprintsev, Alexander"]
[WhiteFideId "13900510"]
[BlackFideId "14100541"]
[WhiteElo "2312"]
[BlackElo "2229"]
[Result "0-1"]
[Round "5"]
[TimeControl "180+2"]
[Date "2023.06.20"]
[WhiteClock "0:00:00"]
[BlackClock "0:01:45"]
[Board "170"]

1. e4 {[%clk 0:02:53]}  d5 {[%clk 0:02:55]} 2. exd5 {[%clk 0:02:50]}  Qxd5 {[%clk 0:02:55]} 3. Qf3 {[%clk 0:02:48]}  Nf6 {[%clk 0:02:53]} 4. Qxd5 {[%clk 0:02:43]}  Nxd5 {[%clk 0:02:52]} 5. c3 {[%clk 0:02:35]}  e5 {[%clk 0:02:51]} 6. Bc4 {[%clk 0:02:33]}  Nb6 {[%clk 0:02:50]} 7. Bb3 {[%clk 0:02:32]}  c5 {[%clk 0:02:48]} 8. d3 {[%clk 0:02:29]}  Bf5 {[%clk 0:02:47]} 9. Ke2 {[%clk 0:02:21]}  Nc6 {[%clk 0:02:46]} 10. Nf3 {[%clk 0:02:11]}  O-O-O {[%clk 0:02:44]} 11. Rd1 {[%clk 0:02:11]}  f6 {[%clk 0:02:43]} 12. Nh4 {[%clk 0:02:08]}  Bg4+ {[%clk 0:02:34]} 13. f3 {[%clk 0:02:06]}  Bd7 {[%clk 0:02:34]} 14. g4 {[%clk 0:02:01]}  g5 {[%clk 0:02:31]} 15. Nf5 {[%clk 0:01:56]}  h5 {[%clk 0:02:31]} 16. Rh1 {[%clk 0:01:40]}  hxg4 {[%clk 0:02:29]} 17. fxg4 {[%clk 0:01:39]}  e4 {[%clk 0:02:25]} 18. dxe4 {[%clk 0:01:13]}  Ne5 {[%clk 0:02:25]} 19. Be3 {[%clk 0:01:01]}  Bb5+ {[%clk 0:02:20]} 20. c4 {[%clk 0:00:50]}  Nbxc4 {[%clk 0:02:19]} 21. Nc3 {[%clk 0:00:47]}  Ba6 {[%clk 0:02:12]} 22. Nd5 {[%clk 0:00:23]}  Nxg4 {[%clk 0:02:02]} 23. Bxc4 {[%clk 0:00:07]}  Bxc4+ {[%clk 0:02:01]} 24. Kf3 {[%clk 0:00:08]}  Ne5+ {[%clk 0:01:54]} 25. Kg3 {[%clk 0:00:03]}  Bxd5 {[%clk 0:01:46]} 26. exd5 {[%clk 0:00:04]}  Rxd5 {[%clk 0:01:47]} 27. Rac1 {[%clk 0:00:04]}  b6 {[%clk 0:01:46]} 28. b4 {[%clk 0:00:02]}  Kb7 {[%clk 0:01:46]} 29. bxc5 {[%clk 0:00:02]}  Bxc5 {[%clk 0:01:46]} 30. Bxc5 {[%clk 0:00:00]}  bxc5 {[%clk 0:01:45]} 0-1


[Site "https://www.chess.com"]

[Event "Titled Tuesday Blitz June 20 Early 2023"]
[White "Zheenbekov, Nurgazy"]
[Black "Ziatdinov, Raset"]
[WhiteFideId "13800485"]
[BlackFideId "2015323"]
[WhiteElo "1975"]
[BlackElo "2220"]
[Result "0-1"]
[Round "5"]
[TimeControl "180+2"]
[Date "2023.06.20"]
[WhiteClock "0:00:18"]
[BlackClock "0:01:10"]
[Board "171"]

1. e4 {[%clk 0:02:57]}  c5 {[%clk 0:02:58]} 2. Nf3 {[%clk 0:02:42]}  Nc6 {[%clk 0:02:56]} 3. Bb5 {[%clk 0:02:33]}  g6 {[%clk 0:02:54]} 4. O-O {[%clk 0:02:32]}  Bg7 {[%clk 0:02:54]} 5. Re1 {[%clk 0:02:32]}  Nh6 {[%clk 0:02:51]} 6. c3 {[%clk 0:02:31]}  O-O {[%clk 0:02:50]} 7. d4 {[%clk 0:02:31]}  cxd4 {[%clk 0:02:45]} 8. cxd4 {[%clk 0:02:30]}  d5 {[%clk 0:02:45]} 9. e5 {[%clk 0:02:29]}  Bg4 {[%clk 0:02:40]} 10. Be2 {[%clk 0:02:27]}  Nf5 {[%clk 0:02:36]} 11. Be3 {[%clk 0:02:26]}  Nxe3 {[%clk 0:02:33]} 12. fxe3 {[%clk 0:02:26]}  Bh6 {[%clk 0:02:32]} 13. Bf1 {[%clk 0:02:14]}  Rc8 {[%clk 0:02:26]} 14. Nc3 {[%clk 0:02:13]}  Na5 {[%clk 0:02:21]} 15. h3 {[%clk 0:02:12]}  Bf5 {[%clk 0:02:16]} 16. Bd3 {[%clk 0:02:02]}  Bxd3 {[%clk 0:02:13]} 17. Qxd3 {[%clk 0:02:01]}  Nc4 {[%clk 0:02:13]} 18. Rab1 {[%clk 0:01:59]}  Qa5 {[%clk 0:02:10]} 19. Ne2 {[%clk 0:01:37]}  Bxe3+ {[%clk 0:02:03]} 20. Kh2 {[%clk 0:01:36]}  Bh6 {[%clk 0:01:55]} 21. b4 {[%clk 0:01:28]}  Qa3 {[%clk 0:01:50]} 22. Rb3 {[%clk 0:01:11]}  Qxa2 {[%clk 0:01:49]} 23. h4 {[%clk 0:00:55]}  Nb2 {[%clk 0:01:43]} 24. Rxb2 {[%clk 0:00:40]}  Qxb2 {[%clk 0:01:42]} 25. h5 {[%clk 0:00:38]}  Qc2 {[%clk 0:01:32]} 26. Qa3 {[%clk 0:00:36]}  Qf5 {[%clk 0:01:26]} 27. hxg6 {[%clk 0:00:33]}  hxg6 {[%clk 0:01:26]} 28. Qxa7 {[%clk 0:00:32]}  Kg7 {[%clk 0:01:21]} 29. Qxb7 {[%clk 0:00:32]}  Rh8 {[%clk 0:01:13]} 30. Kg1 {[%clk 0:00:32]}  Be3+ {[%clk 0:01:12]} 31. Kf1 {[%clk 0:00:32]}  Rh1+ {[%clk 0:01:12]} 32. Ng1 {[%clk 0:00:18]}  Rxg1+ {[%clk 0:01:10]} 0-1


[Site "https://www.chess.com"]

[Event "Titled Tuesday Blitz June 20 Early 2023"]
[White "Ansh M Shah"]
[Black "agvania123"]
[WhiteFideId "25033379"]
[WhiteElo "2084"]
[BlackElo "2254"]
[Result "1-0"]
[Round "5"]
[TimeControl "180+2"]
[Date "2023.06.20"]
[WhiteClock "0:00:56"]
[BlackClock "0:01:33"]
[Board "176"]

1. d4 {[%clk 0:02:55]}  Nf6 {[%clk 0:02:58]} 2. c4 {[%clk 0:02:49]}  e6 {[%clk 0:02:57]} 3. g3 {[%clk 0:02:48]}  d5 {[%clk 0:02:53]} 4. Bg2 {[%clk 0:02:38]}  Be7 {[%clk 0:02:52]} 5. Nf3 {[%clk 0:02:37]}  O-O {[%clk 0:02:52]} 6. O-O {[%clk 0:02:34]}  b6 {[%clk 0:02:52]} 7. Nc3 {[%clk 0:02:25]}  Bb7 {[%clk 0:02:51]} 8. Ne5 {[%clk 0:02:22]}  Nbd7 {[%clk 0:02:51]} 9. cxd5 {[%clk 0:02:14]}  exd5 {[%clk 0:02:50]} 10. Qb3 {[%clk 0:02:11]}  Nxe5 {[%clk 0:02:03]} 11. dxe5 {[%clk 0:02:09]}  Ne4 {[%clk 0:02:01]} 12. Nxe4 {[%clk 0:02:01]}  dxe4 {[%clk 0:02:02]} 13. Rd1 {[%clk 0:01:57]}  Qc8 {[%clk 0:02:01]} 14. Bf4 {[%clk 0:01:57]}  Qf5 {[%clk 0:01:56]} 15. Rac1 {[%clk 0:01:47]}  Bc5 {[%clk 0:01:52]} 16. Rxc5 {[%clk 0:01:42]}  bxc5 {[%clk 0:01:49]} 17. Qxb7 {[%clk 0:01:42]}  Rad8 {[%clk 0:01:50]} 18. Rc1 {[%clk 0:01:12]}  g5 {[%clk 0:01:46]} 19. Be3 {[%clk 0:01:12]}  Qxe5 {[%clk 0:01:43]} 20. Qxe4 {[%clk 0:01:01]}  Qxe4 {[%clk 0:01:41]} 21. Bxe4 {[%clk 0:01:01]}  f5 {[%clk 0:01:41]} 22. Bd3 {[%clk 0:00:59]}  Rfe8 {[%clk 0:01:35]} 23. Bxc5 {[%clk 0:00:57]}  Kg7 {[%clk 0:01:35]} 24. Bxa7 {[%clk 0:00:55]}  Ra8 {[%clk 0:01:33]} 25. Bd4+ {[%clk 0:00:56]} 1-0


[Site "https://www.chess.com"]

[Event "Titled Tuesday Blitz June 20 Early 2023"]
[White "Marn, Jan"]
[Black "Clawitter, Craig"]
[WhiteFideId "14619245"]
[BlackFideId "2023105"]
[WhiteElo "2242"]
[BlackElo "2239"]
[Result "1-0"]
[Round "5"]
[TimeControl "180+2"]
[Date "2023.06.20"]
[WhiteClock "0:00:12"]
[BlackClock "0:00:07"]
[Board "177"]

1. d4 {[%clk 0:02:58]}  e6 {[%clk 0:03:00]} 2. Nf3 {[%clk 0:02:58]}  Nf6 {[%clk 0:03:00]} 3. e3 {[%clk 0:02:57]}  c5 {[%clk 0:02:55]} 4. Bd3 {[%clk 0:02:55]}  b6 {[%clk 0:02:55]} 5. O-O {[%clk 0:02:52]}  Bb7 {[%clk 0:02:52]} 6. Nbd2 {[%clk 0:02:52]}  Be7 {[%clk 0:02:52]} 7. b3 {[%clk 0:02:53]}  O-O {[%clk 0:02:49]} 8. Bb2 {[%clk 0:02:53]}  d6 {[%clk 0:02:42]} 9. a3 {[%clk 0:02:53]}  a6 {[%clk 0:02:40]} 10. c4 {[%clk 0:02:51]}  Re8 {[%clk 0:02:28]} 11. Re1 {[%clk 0:02:50]}  Nc6 {[%clk 0:02:28]} 12. Qc2 {[%clk 0:02:20]}  cxd4 {[%clk 0:02:11]} 13. exd4 {[%clk 0:02:19]}  Rc8 {[%clk 0:02:12]} 14. Ng5 {[%clk 0:01:11]}  h6 {[%clk 0:01:55]} 15. Nxf7 {[%clk 0:01:11]}  Kxf7 {[%clk 0:01:54]} 16. Bg6+ {[%clk 0:01:11]}  Kg8 {[%clk 0:01:49]} 17. Bxe8 {[%clk 0:01:11]}  Qxe8 {[%clk 0:01:37]} 18. Rxe6 {[%clk 0:01:11]}  Qf7 {[%clk 0:01:30]} 19. Rae1 {[%clk 0:01:11]}  Bf8 {[%clk 0:01:18]} 20. d5 {[%clk 0:00:39]}  Ne5 {[%clk 0:00:52]} 21. Bxe5 {[%clk 0:00:19]}  dxe5 {[%clk 0:00:49]} 22. Qf5 {[%clk 0:00:19]}  Bxa3 {[%clk 0:00:38]} 23. Rxb6 {[%clk 0:00:19]}  Bc5 {[%clk 0:00:34]} 24. Re6 {[%clk 0:00:19]}  Ng4 {[%clk 0:00:26]} 25. Qxf7+ {[%clk 0:00:18]}  Kxf7 {[%clk 0:00:26]} 26. Ne4 {[%clk 0:00:16]}  Bd4 {[%clk 0:00:16]} 27. Nd6+ {[%clk 0:00:16]}  Kf8 {[%clk 0:00:11]} 28. Nxc8 {[%clk 0:00:13]}  Bxf2+ {[%clk 0:00:11]} 29. Kf1 {[%clk 0:00:13]}  Bxe1 {[%clk 0:00:11]} 30. Nd6 {[%clk 0:00:13]}  Bc8 {[%clk 0:00:07]} 31. Nxc8 {[%clk 0:00:12]} 1-0


[Site "https://www.chess.com"]

[Event "Titled Tuesday Blitz June 20 Early 2023"]
[White "Quirke, Jeffrey"]
[Black "Ai, Evan"]
[WhiteFideId "2013029"]
[BlackFideId "2094770"]
[WhiteElo "2203"]
[BlackElo "1963"]
[Result "0-1"]
[Round "5"]
[TimeControl "180+2"]
[Date "2023.06.20"]
[WhiteClock "0:00:02"]
[BlackClock "0:00:18"]
[Board "183"]

1. e4 {[%clk 0:03:00]}  e5 {[%clk 0:02:59]} 2. Nf3 {[%clk 0:03:00]}  Nc6 {[%clk 0:02:57]} 3. Bb5 {[%clk 0:03:00]}  a6 {[%clk 0:02:57]} 4. Ba4 {[%clk 0:03:00]}  Nf6 {[%clk 0:02:56]} 5. Qe2 {[%clk 0:03:00]}  b5 {[%clk 0:02:55]} 6. Bb3 {[%clk 0:02:59]}  Bc5 {[%clk 0:02:55]} 7. d3 {[%clk 0:02:48]}  d6 {[%clk 0:02:54]} 8. h3 {[%clk 0:02:46]}  h6 {[%clk 0:02:52]} 9. Nbd2 {[%clk 0:02:45]}  Na5 {[%clk 0:02:52]} 10. Nf1 {[%clk 0:02:44]}  Nxb3 {[%clk 0:02:47]} 11. axb3 {[%clk 0:02:43]}  Bb7 {[%clk 0:02:48]} 12. g4 {[%clk 0:02:34]}  Qe7 {[%clk 0:02:40]} 13. Ng3 {[%clk 0:02:34]}  g6 {[%clk 0:02:38]} 14. Be3 {[%clk 0:02:28]}  Nd7 {[%clk 0:02:37]} 15. h4 {[%clk 0:02:10]}  Bxe3 {[%clk 0:02:25]} 16. Qxe3 {[%clk 0:02:03]}  Nf6 {[%clk 0:02:25]} 17. Nh2 {[%clk 0:02:01]}  h5 {[%clk 0:02:23]} 18. g5 {[%clk 0:01:58]}  Nd7 {[%clk 0:02:22]} 19. f4 {[%clk 0:01:43]}  exf4 {[%clk 0:02:05]} 20. Qxf4 {[%clk 0:01:42]}  Qe5 {[%clk 0:02:04]} 21. O-O {[%clk 0:01:37]}  O-O {[%clk 0:01:31]} 22. Qxe5 {[%clk 0:01:34]}  dxe5 {[%clk 0:01:32]} 23. b4 {[%clk 0:01:31]}  c5 {[%clk 0:01:27]} 24. bxc5 {[%clk 0:01:30]}  Nxc5 {[%clk 0:01:28]} 25. Nf3 {[%clk 0:01:22]}  Rfe8 {[%clk 0:01:15]} 26. Ne2 {[%clk 0:01:16]}  Re6 {[%clk 0:01:11]} 27. b4 {[%clk 0:01:11]}  Nd7 {[%clk 0:01:08]} 28. Nd2 {[%clk 0:01:05]}  Rc8 {[%clk 0:01:08]} 29. Ra2 {[%clk 0:01:05]}  Nb6 {[%clk 0:01:05]} 30. Nb3 {[%clk 0:01:02]}  Na4 {[%clk 0:01:03]} 31. Rfa1 {[%clk 0:00:32]}  Rc7 {[%clk 0:00:55]} 32. Rxa4 {[%clk 0:00:29]}  bxa4 {[%clk 0:00:54]} 33. Nc5 {[%clk 0:00:30]}  Rb6 {[%clk 0:00:53]} 34. c3 {[%clk 0:00:29]}  Bc6 {[%clk 0:00:49]} 35. Kf2 {[%clk 0:00:25]}  Bb5 {[%clk 0:00:43]} 36. Ke3 {[%clk 0:00:24]}  f6 {[%clk 0:00:40]} 37. gxf6 {[%clk 0:00:23]}  Rxf6 {[%clk 0:00:40]} 38. Nxa4 {[%clk 0:00:21]}  Rcf7 {[%clk 0:00:38]} 39. Nc5 {[%clk 0:00:19]}  Rf3+ {[%clk 0:00:38]} 40. Kd2 {[%clk 0:00:19]}  Rf2 {[%clk 0:00:37]} 41. Nxa6 {[%clk 0:00:16]}  Rh2 {[%clk 0:00:38]} 42. Nc5 {[%clk 0:00:15]}  Rff2 {[%clk 0:00:38]} 43. Ra8+ {[%clk 0:00:12]}  Kg7 {[%clk 0:00:18]} 44. Ne6+ {[%clk 0:00:06]}  Kf6 {[%clk 0:00:18]} 45. Rf8+ {[%clk 0:00:05]}  Kxe6 {[%clk 0:00:18]} 46. Rxf2 {[%clk 0:00:05]}  Rxf2 {[%clk 0:00:19]} 47. Ke3 {[%clk 0:00:06]}  Rh2 {[%clk 0:00:19]} 48. c4 {[%clk 0:00:05]}  Bd7 {[%clk 0:00:18]} 49. Nc3 {[%clk 0:00:05]}  Rxh4 {[%clk 0:00:18]} 50. b5 {[%clk 0:00:05]}  Rh3+ {[%clk 0:00:18]} 51. Kd2 {[%clk 0:00:05]}  Kd6 {[%clk 0:00:19]} 52. Na4 {[%clk 0:00:04]}  Rh2+ {[%clk 0:00:19]} 53. Kc3 {[%clk 0:00:04]}  Ra2 {[%clk 0:00:19]} 54. c5+ {[%clk 0:00:04]}  Kc7 {[%clk 0:00:19]} 55. b6+ {[%clk 0:00:03]}  Kc6 {[%clk 0:00:19]} 56. Kb3 {[%clk 0:00:02]}  Be6+ {[%clk 0:00:18]} 0-1


[Site "https://www.chess.com"]

[Event "Titled Tuesday Blitz June 20 Early 2023"]
[White "Fiedorek, Michal"]
[Black "KSho99"]
[WhiteFideId "1199528"]
[WhiteElo "2135"]
[BlackElo "2197"]
[Result "1-0"]
[Round "5"]
[TimeControl "180+2"]
[Date "2023.06.20"]
[WhiteClock "0:00:50"]
[BlackClock "0:00:00"]
[Board "184"]

1. e4 {[%clk 0:02:57]}  e6 {[%clk 0:02:58]} 2. b3 {[%clk 0:02:56]}  d5 {[%clk 0:02:58]} 3. Bb2 {[%clk 0:02:56]}  dxe4 {[%clk 0:02:57]} 4. Nc3 {[%clk 0:02:57]}  Nf6 {[%clk 0:02:56]} 5. Qe2 {[%clk 0:02:57]}  Nc6 {[%clk 0:02:51]} 6. Nxe4 {[%clk 0:02:56]}  Nxe4 {[%clk 0:02:49]} 7. Qxe4 {[%clk 0:02:57]}  Qd5 {[%clk 0:02:45]} 8. Qxd5 {[%clk 0:02:56]}  exd5 {[%clk 0:02:45]} 9. O-O-O {[%clk 0:02:57]}  Be6 {[%clk 0:02:41]} 10. Nf3 {[%clk 0:02:57]}  O-O-O {[%clk 0:02:40]} 11. Bb5 {[%clk 0:02:57]}  f6 {[%clk 0:02:35]} 12. Rhe1 {[%clk 0:02:56]}  Bf7 {[%clk 0:02:34]} 13. Bxc6 {[%clk 0:02:55]}  bxc6 {[%clk 0:02:34]} 14. Nd4 {[%clk 0:02:56]}  Kd7 {[%clk 0:02:26]} 15. Re3 {[%clk 0:02:50]}  c5 {[%clk 0:02:07]} 16. Nf5 {[%clk 0:02:49]}  d4 {[%clk 0:02:06]} 17. Re2 {[%clk 0:02:46]}  g6 {[%clk 0:01:56]} 18. Ng3 {[%clk 0:02:42]}  h5 {[%clk 0:01:55]} 19. Rde1 {[%clk 0:02:40]}  Bd5 {[%clk 0:01:48]} 20. Ne4 {[%clk 0:02:33]}  Be7 {[%clk 0:01:46]} 21. c3 {[%clk 0:02:24]}  f5 {[%clk 0:01:44]} 22. Ng3 {[%clk 0:02:14]}  Bf6 {[%clk 0:01:40]} 23. cxd4 {[%clk 0:02:13]}  cxd4 {[%clk 0:01:25]} 24. f3 {[%clk 0:02:07]}  c5 {[%clk 0:01:21]} 25. d3 {[%clk 0:02:03]}  h4 {[%clk 0:01:15]} 26. Nf1 {[%clk 0:02:02]}  h3 {[%clk 0:01:16]} 27. Nd2 {[%clk 0:01:58]}  Bg5 {[%clk 0:01:08]} 28. g3 {[%clk 0:01:37]}  Bxf3 {[%clk 0:01:01]} 29. Re5 {[%clk 0:01:36]}  Rhe8 {[%clk 0:00:52]} 30. Kc2 {[%clk 0:01:33]}  Bxd2 {[%clk 0:00:21]} 31. Kxd2 {[%clk 0:01:32]}  Rxe5 {[%clk 0:00:20]} 32. Rxe5 {[%clk 0:01:32]}  Re8 {[%clk 0:00:19]} 33. Rxe8 {[%clk 0:01:29]}  Kxe8 {[%clk 0:00:20]} 34. Ba3 {[%clk 0:01:30]}  Kd7 {[%clk 0:00:13]} 35. Bxc5 {[%clk 0:01:29]}  a5 {[%clk 0:00:14]} 36. Bxd4 {[%clk 0:01:29]}  Kc6 {[%clk 0:00:14]} 37. Ke3 {[%clk 0:01:26]}  Bd5 {[%clk 0:00:14]} 38. Kf4 {[%clk 0:01:22]}  Kb5 {[%clk 0:00:13]} 39. Kg5 {[%clk 0:01:15]}  Kb4 {[%clk 0:00:10]} 40. Kxg6 {[%clk 0:01:14]}  Ka3 {[%clk 0:00:10]} 41. Kxf5 {[%clk 0:01:06]}  Kxa2 {[%clk 0:00:10]} 42. Bb6 {[%clk 0:01:06]}  Kxb3 {[%clk 0:00:10]} 43. Bxa5 {[%clk 0:01:06]}  Kc2 {[%clk 0:00:09]} 44. Ke5 {[%clk 0:00:59]}  Bg2 {[%clk 0:00:06]} 45. d4 {[%clk 0:00:59]}  Kb3 {[%clk 0:00:06]} 46. d5 {[%clk 0:00:55]}  Ka4 {[%clk 0:00:06]} 47. d6 {[%clk 0:00:53]}  Bc6 {[%clk 0:00:06]} 48. Bc7 {[%clk 0:00:51]}  Bd7 {[%clk 0:00:05]} 49. Kf6 {[%clk 0:00:51]}  Kb5 {[%clk 0:00:06]} 50. Kg5 {[%clk 0:00:50]}  Kc6 {[%clk 0:00:05]} 51. Kh4 {[%clk 0:00:50]}  Be6 {[%clk 0:00:00]} 52. g4 {[%clk 0:00:50]} 1-0


[Site "https://www.chess.com"]